bitfinex/quotes_BTCUSD_20240723
["timestamp","ask_amount","ask_price","bid_price","bid_amount"]
[1721723028344,1.19719482,66798.0,66797.0,0.3003229]
[1721723028865,1.19719482,66798.0,66797.0,0.3043229]
[1721723029080,1.19919482,66798.0,66797.0,0.3043229]
[1721723029426,1.19919482,66798.0,66797.0,0.2993229]
[1721723029605,1.19719482,66798.0,66797.0,0.3003229]
[1721723029784,1.19719482,66798.0,66797.0,0.2993229]
[1721723029985,1.19919482,66798.0,66797.0,0.2993229]
[1721723030203,1.19919482,66798.0,66797.0,0.3003229]
[1721723033471,1.05219482,66798.0,66797.0,0.3003229]
[1721723038297,1.19469482,66798.0,66797.0,0.3003229]
[1721723039193,1.19269482,66798.0,66797.0,0.3003229]
[1721723039714,1.19469482,66798.0,66797.0,0.2993229]
[1721723039903,1.19469482,66798.0,66797.0,0.3003229]
[1721723040783,1.34165747,66798.0,66797.0,0.3003229]
[1721723043343,1.19469482,66798.0,66797.0,0.3003229]
[1721723044002,1.81412473,66798.0,66797.0,0.3003229]
[1721723044608,1.88414073,66798.0,66797.0,0.3003229]
[1721723045026,1.88214073,66798.0,66797.0,0.3003229]
[1721723045178,1.88214073,66798.0,66797.0,0.2993229]
[1721723045383,2.03310338,66798.0,66797.0,0.3003229]
[1721723045588,2.03610338,66798.0,66797.0,0.3013229]
[1721723045815,1.97410338,66798.0,66797.0,0.2993229]
[1721723046109,1.98410338,66798.0,66797.0,0.3003229]
[1721723046323,1.98710338,66798.0,66797.0,0.3013229]
[1721723046502,1.98410338,66798.0,66797.0,0.3003229]
[1721723046701,1.97410338,66798.0,66797.0,0.2993229]
[1721723046902,1.84014073,66798.0,66797.0,0.3013229]
[1721723049333,1.89014073,66798.0,66797.0,0.3013229]
[1721723049533,1.84014073,66798.0,66797.0,0.3013229]
[1721723050108,1.82714073,66798.0,66797.0,0.2993229]
[1721723050358,1.84014073,66798.0,66797.0,0.3003229]
[1721723050795,1.98710338,66798.0,66797.0,0.3003229]
[1721723051801,1.99010338,66798.0,66797.0,0.3013229]
[1721723052781,1.84314073,66798.0,66797.0,0.3013229]
[1721723054200,1.83814073,66798.0,66797.0,0.3013229]
[1721723055581,2.18755073,66798.0,66797.0,0.3013229]
[1721723055975,2.18839073,66798.0,66797.0,0.3013229]
[1721723056542,2.18839073,66798.0,66797.0,0.2998229]
[1721723056742,2.18839073,66798.0,66797.0,0.00331771]
[1721723056743,2.79266338,66798.0,66797.0,0.00331771]
[1721723056966,2.79266338,66798.0,66782.0,0.000924]
[1721723056967,1.312685,66783.0,66782.0,0.000924]
[1721723057186,0.569299,66773.0,66756.0,0.029984]
[1721723057384,0.569299,66773.0,66742.0,0.000924]
[1721723057385,1.98497433,66773.0,66751.0,0.030908]
[1721723057582,0.74904,66752.0,66751.0,0.000924]
[1721723057922,1.21538102,66752.0,66751.0,0.000924]
[1721723058078,0.74914,66743.0,66742.0,0.000924]
[1721723058285,1.25570142,66743.0,66742.0,0.000924]
[1721723058578,2.23512243,66743.0,66742.0,0.000924]
[1721723058774,1.563911,66731.0,66727.0,0.000924]
[1721723058975,1.027226,66728.0,66727.0,0.000924]
[1721723059177,0.883261,66716.0,66715.0,0.000924]
[1721723059389,1.90403423,66716.0,66715.0,0.000924]
[1721723059550,2.50105972,66716.0,66715.0,0.000924]
[1721723059750,2.80083772,66716.0,66715.0,0.000924]
[1721723060148,1.29624291,66716.0,66715.0,0.000924]
[1721723060371,0.549667,66716.0,66715.0,0.030908]
[1721723060750,0.99646491,66716.0,66715.0,0.00385353]
[1721723061172,1.31924291,66716.0,66715.0,0.000924]
[1721723061786,1.81714039,66716.0,66715.0,0.000924]
[1721723062254,1.33324291,66716.0,66715.0,0.000924]
[1721723062506,1.34724291,66716.0,66715.0,0.000924]
[1721723062707,1.75303691,66716.0,66715.0,0.000924]
[1721723062961,1.7534058,66716.0,66715.0,0.000924]
[1721723063185,1.91093691,66716.0,66715.0,0.000924]
[1721723063416,2.0248058,66716.0,66715.0,0.000924]
[1721723063549,2.2302801,66716.0,66715.0,0.000924]
[1721723064163,2.18576845,66716.0,66715.0,0.000924]
[1721723064405,2.2162801,66716.0,66715.0,0.000924]
[1721723064599,1.9583801,66716.0,66715.0,0.000924]
[1721723064821,1.44212345,66716.0,66715.0,0.000924]
[1721723065045,1.077223,66716.0,66715.0,0.000924]
[1721723065278,1.063223,66716.0,66715.0,0.000924]
[1721723065801,1.077223,66716.0,66715.0,0.000924]
[1721723066039,0.463667,66716.0,66715.0,0.030908]
[1721723066285,0.763445,66716.0,66715.0,0.030908]
[1721723066520,0.463667,66716.0,66715.0,0.030908]
[1721723066758,0.477667,66716.0,66715.0,0.030908]
[1721723066990,0.8238117,66716.0,66715.0,0.000924]
[1721723067219,1.1235897,66716.0,66715.0,0.000924]
[1721723067436,0.8098117,66716.0,66715.0,0.000924]
[1721723067659,0.763445,66716.0,66715.0,0.000924]
[1721723067888,0.775445,66716.0,66715.0,0.000924]
[1721723068155,1.049223,66716.0,66715.0,0.000924]
[1721723068362,1.60102091,66716.0,66715.0,0.000924]
[1721723068627,1.83703691,66716.0,66715.0,0.000924]
[1721723068855,1.027393,66713.0,66712.0,0.009273]
[1721723069050,1.89699491,66713.0,66712.0,0.009273]
[1721723069285,2.19678591,66713.0,66712.0,0.009273]
[1721723069729,2.24398077,66713.0,66712.0,0.009273]
[1721723069915,2.29283256,66713.0,66712.0,0.009273]
[1721723070136,2.34173105,66713.0,66712.0,0.009273]
[1721723070588,2.34173105,66713.0,66712.0,0.00052461]
[1721723071192,1.049569,66694.0,66693.0,0.029984]
[1721723071434,1.149569,66694.0,66693.0,0.029984]
[1721723072347,1.20329605,66694.0,66693.0,0.029984]
[1721723072483,1.19829605,66694.0,66693.0,0.029984]
[1721723072908,1.144569,66694.0,66693.0,0.029984]
[1721723074136,1.145569,66694.0,66693.0,0.029984]
[1721723074523,1.445446,66694.0,66693.0,0.029984]
[1721723074762,1.145569,66694.0,66693.0,0.029984]
[1721723075005,1.445446,66694.0,66693.0,0.029984]
[1721723075226,1.445446,66694.0,66688.0,0.177884]
[1721723075227,1.049601,66692.0,66688.0,0.177884]
[1721723075423,1.52297642,66692.0,66688.0,0.177884]
[1721723076347,1.5719849,66692.0,66688.0,0.177884]
[1721723076549,1.52297642,66692.0,66688.0,0.177884]
[1721723076689,1.57912152,66692.0,66688.0,0.177884]
[1721723077120,1.83624343,66692.0,66683.0,0.029984]
[1721723077561,1.88525191,66692.0,66683.0,0.029984]
[1721723077700,1.83624343,66692.0,66683.0,0.029984]
[1721723078119,1.84024343,66692.0,66683.0,0.029984]
[1721723078396,1.83624343,66692.0,66683.0,0.029984]
[1721723078740,1.84624343,66692.0,66683.0,0.029984]
[1721723078936,1.73709833,66692.0,66683.0,0.029984]
[1721723079144,0.749792,66685.0,66684.0,0.031257]
[1721723079379,1.149709,66685.0,66684.0,0.031257]
[1721723079599,1.149709,66685.0,66684.0,0.03421729]
[1721723079820,1.149709,66685.0,66684.0,0.031257]
[1721723080960,1.149709,66685.0,66684.0,0.001273]
[1721723081172,1.150709,66685.0,66684.0,0.001273]
[1721723081976,1.150709,66685.0,66684.0,0.031257]
[1721723082572,0.850792,66685.0,66684.0,0.031257]
[1721723083723,0.550875,66685.0,66684.0,0.031257]
[1721723083939,0.001,66685.0,66684.0,0.33925261]
[1721723084145,0.001,66685.0,66684.0,0.47510418]
[1721723084369,0.619511,66706.0,66705.0,0.175184]
[1721723084533,1.219157,66706.0,66705.0,0.175184]
[1721723085556,0.925334,66706.0,66705.0,0.175184]
[1721723085766,0.76444186,66706.0,66705.0,0.175184]
[1721723085985,1.05826486,66706.0,66705.0,0.175184]
[1721723086415,1.06126486,66706.0,66705.0,0.175184]
[1721723086635,0.16179586,66706.0,66705.0,0.175184]
[1721723086883,0.45861886,66706.0,66705.0,0.175184]
[1721723087178,0.85844186,66706.0,66705.0,0.175184]
[1721723087397,0.85844186,66706.0,66705.0,0.1927024]
[1721723087398,0.00888486,66706.0,66705.0,0.1927024]
[1721723087621,0.15879586,66706.0,66705.0,0.176184]
[1721723087840,0.82304642,66706.0,66705.0,0.17810367]
[1721723088209,0.452734,66706.0,66705.0,0.175184]
[1721723088540,0.452734,66706.0,66705.0,0.17810367]
[1721723088541,0.458734,66706.0,66705.0,0.17810367]
[1721723088697,0.8054304,66706.0,66705.0,0.18610367]
[1721723088906,0.753557,66706.0,66705.0,0.18610367]
[1721723089167,0.750557,66706.0,66705.0,0.18610367]
[1721723089404,0.751557,66706.0,66705.0,0.18910367]
[1721723089620,0.751557,66706.0,66705.0,0.186184]
[1721723089868,0.82660021,66706.0,66705.0,0.18910367]
[1721723090098,1.12642321,66706.0,66705.0,0.18910367]
[1721723090315,0.750557,66706.0,66705.0,0.19010367]
[1721723090534,0.450734,66706.0,66705.0,0.187184]
[1721723090759,0.750557,66706.0,66705.0,0.18210367]
[1721723091019,0.749557,66706.0,66705.0,0.17910367]
[1721723091259,1.12632321,66706.0,66705.0,0.18510367]
[1721723091491,1.12532321,66706.0,66705.0,0.092684]
[1721723091722,1.049426,66703.0,66702.0,0.029984]
[1721723091957,0.74959,66703.0,66702.0,0.029984]
[1721723092403,0.449754,66703.0,66702.0,0.029984]
[1721723092624,0.74959,66703.0,66702.0,0.029984]
[1721723093246,0.74959,66703.0,66702.0,0.030984]
[1721723093247,0.75059,66703.0,66702.0,0.030984]
[1721723094369,0.8566305,66703.0,66702.0,0.036984]
[1721723094552,0.8546305,66703.0,66702.0,0.019984]
[1721723094824,1.049426,66703.0,66702.0,0.019984]
[1721723095056,1.051426,66703.0,66702.0,0.026984]
[1721723095280,0.75159,66703.0,66702.0,0.020984]
[1721723095504,0.75059,66703.0,66702.0,0.025984]
[1721723095729,0.75159,66703.0,66702.0,0.025984]
[1721723095925,0.75059,66703.0,66702.0,0.020984]
[1721723096244,0.74959,66703.0,66702.0,0.019984]
[1721723097325,0.74959,66703.0,66702.0,0.021984]
[1721723097545,0.74959,66703.0,66702.0,0.019984]
[1721723097764,0.75259,66703.0,66702.0,0.025984]
[1721723097972,1.053426,66703.0,66702.0,0.025984]
[1721723098187,1.16611754,66703.0,66702.0,0.019984]
[1721723098571,1.26611754,66703.0,66702.0,0.020984]
[1721723098811,1.149426,66703.0,66702.0,0.019984]
[1721723099196,0.85159,66703.0,66702.0,0.026984]
[1721723099651,0.001,66703.0,66702.0,0.32292391]
[1721723099936,0.001,66703.0,66702.0,0.49701612]
[1721723100165,0.001,66703.0,66702.0,0.35020007]
[1721723100355,0.001,66703.0,66702.0,0.31760786]
[1721723100602,0.449742,66705.0,66704.0,0.019984]
[1721723101030,0.449742,66705.0,66704.0,0.02307011]
[1721723101276,0.749506,66711.0,66710.0,0.019984]
[1721723101508,0.849506,66711.0,66710.0,0.019984]
[1721723101702,1.2643221,66711.0,66710.0,0.019984]
[1721723102161,1.149309,66711.0,66710.0,0.019984]
[1721723102384,0.849506,66711.0,66710.0,0.019984]
[1721723102722,1.152309,66711.0,66710.0,0.019984]
[1721723103102,1.152309,66711.0,66704.0,0.006]
[1721723103103,0.749567,66705.0,66704.0,0.025984]
[1721723103308,1.12288342,66705.0,66704.0,0.025984]
[1721723103552,1.12288342,66705.0,66704.0,0.019984]
[1721723103768,0.749567,66705.0,66704.0,0.019984]
[1721723104086,0.299836,66703.0,66702.0,0.019984]
[1721723104294,0.82307942,66703.0,66702.0,0.019984]
[1721723104435,0.92307942,66703.0,66702.0,0.019984]
[1721723104787,0.84959,66703.0,66702.0,0.019984]
[1721723105336,0.85059,66703.0,66702.0,0.025984]
[1721723106091,0.550754,66703.0,66702.0,0.025984]
[1721723106538,0.85059,66703.0,66702.0,0.025984]
[1721723107186,0.85159,66703.0,66702.0,0.034984]
[1721723107398,0.85159,66703.0,66702.0,0.025984]
[1721723107741,0.85259,66703.0,66702.0,0.034984]
[1721723107950,1.27501594,66703.0,66702.0,0.034984]
[1721723108143,1.27401594,66703.0,66702.0,0.028984]
[1721723108353,1.27501594,66703.0,66702.0,0.015]
[1721723108614,1.27301594,66703.0,66702.0,0.006]
[1721723108753,1.27401594,66703.0,66702.0,0.015]
[1721723108972,1.150426,66703.0,66702.0,0.009]
[1721723109250,1.150426,66703.0,66702.0,0.015]
[1721723109412,1.451262,66703.0,66702.0,0.015]
[1721723109809,1.151426,66703.0,66702.0,0.015]
[1721723110282,1.150426,66703.0,66702.0,0.006]
[1721723110493,1.450262,66703.0,66702.0,0.006]
[1721723110696,1.150426,66703.0,66702.0,0.006]
[1721723110900,0.149934,66696.0,66695.0,0.00018049]
[1721723111295,1.22302742,66696.0,66695.0,0.00018049]
[1721723111507,1.52289542,66696.0,66695.0,0.00306355]
[1721723111711,1.52289542,66696.0,66695.0,0.00018049]
[1721723111924,1.66985807,66696.0,66695.0,0.00018049]
[1721723112104,1.52289542,66696.0,66695.0,0.00018049]
[1721723112431,1.52389542,66696.0,66695.0,0.00918049]
[1721723112817,1.58289542,66696.0,66695.0,0.00918049]
[1721723113017,1.53289542,66696.0,66695.0,0.00918049]
[1721723113264,1.87687798,66696.0,66695.0,0.00918049]
[1721723113463,1.87587798,66696.0,66695.0,0.00018049]
[1721723113824,1.82587798,66696.0,66695.0,0.00018049]
[1721723114011,1.83187798,66696.0,66695.0,0.00118049]
[1721723114160,1.82287798,66696.0,66695.0,0.00018049]
[1721723114562,1.83787798,66696.0,66695.0,0.00118049]
[1721723114770,1.82587798,66696.0,66695.0,0.00018049]
[1721723114974,1.81687798,66696.0,66695.0,0.00018049]
[1721723115174,1.87287798,66696.0,66695.0,0.00118049]
[1721723115398,1.88187798,66696.0,66695.0,0.00118049]
[1721723115604,1.83187798,66696.0,66695.0,0.00118049]
[1721723115813,1.68491533,66696.0,66695.0,0.00118049]
[1721723116788,1.69383107,66696.0,66695.0,0.00118049]
[1721723116991,1.74383107,66696.0,66695.0,0.00118049]
[1721723117296,1.80973107,66696.0,66695.0,0.00118049]
[1721723117504,1.95669372,66696.0,66695.0,0.00118049]
[1721723117711,1.75073107,66696.0,66695.0,0.00118049]
[1721723118135,1.75973107,66696.0,66695.0,0.00118049]
[1721723118626,1.75973107,66696.0,66695.0,0.00018049]
[1721723118627,1.75373107,66696.0,66695.0,0.00018049]
[1721723119052,1.68783107,66696.0,66695.0,0.00018049]
[1721723119461,1.93479372,66696.0,66695.0,0.00018049]
[1721723119619,1.95779372,66696.0,66695.0,0.00018049]
[1721723120049,2.25766172,66696.0,66695.0,0.00018049]
[1721723120246,2.26366172,66696.0,66695.0,0.00118049]
[1721723120468,2.21366172,66696.0,66695.0,0.00118049]
[1721723120993,2.33996172,66696.0,66695.0,0.00118049]
[1721723121418,2.33996172,66696.0,66695.0,0.00210449]
[1721723122120,2.33096172,66696.0,66695.0,0.00210449]
[1721723122326,2.88344572,66696.0,66695.0,4.9e-07]
[1721723122552,1.541126,66685.0,66684.0,0.001273]
[1721723122780,1.81377145,66685.0,66684.0,0.001273]
[1721723122997,1.91377145,66685.0,66684.0,0.001273]
[1721723123962,1.96377145,66685.0,66684.0,0.001273]
[1721723124183,1.97377145,66685.0,66684.0,0.002273]
[1721723124412,1.97377145,66685.0,66684.0,0.001273]
[1721723124650,2.27368845,66685.0,66684.0,0.001273]
[1721723124882,2.29668845,66685.0,66684.0,0.001273]
[1721723125155,2.27668845,66685.0,66684.0,0.001273]
[1721723125375,1.349892,66672.0,66664.0,0.019984]
[1721723125598,1.74191191,66672.0,66664.0,0.019984]
[1721723125825,1.59691191,66672.0,66664.0,0.019984]
[1721723127718,1.61791191,66672.0,66671.0,0.003]
[1721723127958,1.72053745,66672.0,66671.0,0.003]
[1721723128177,1.61791191,66672.0,66671.0,0.003]
[1721723129777,1.60591191,66672.0,66671.0,0.003]
[1721723130160,1.61791191,66672.0,66671.0,0.003]
[1721723130481,1.61797994,66672.0,66671.0,0.002]
[1721723130679,1.60597994,66672.0,66671.0,0.002]
[1721723130873,1.75294259,66672.0,66671.0,0.002]
[1721723131364,1.76494259,66672.0,66671.0,0.002]
[1721723131625,1.77394259,66672.0,66671.0,0.002]
[1721723131807,1.61497994,66672.0,66671.0,0.002]
[1721723132895,1.60597994,66672.0,66671.0,0.002]
[1721723133343,1.17098403,66672.0,66671.0,0.021984]
[1721723133540,1.17998403,66672.0,66671.0,0.163384]
[1721723134087,1.17098403,66672.0,66671.0,0.163384]
[1721723134286,1.31800394,66672.0,66671.0,0.002]
[1721723134488,1.32700394,66672.0,66671.0,0.002]
[1721723138843,1.70046936,66672.0,66671.0,0.002]
[1721723139228,2.13046136,66672.0,66671.0,0.002]
[1721723139463,1.050105,66660.0,66659.0,0.00016]
[1721723139669,1.285118,66660.0,66659.0,0.00016]
[1721723139867,1.585148,66660.0,66659.0,0.00016]
[1721723141261,1.599148,66660.0,66659.0,0.00016]
[1721723141603,1.464135,66660.0,66659.0,0.00016]
[1721723142048,1.164105,66660.0,66659.0,0.00016]
[1721723142502,1.150105,66660.0,66659.0,0.00016]
[1721723142728,1.154105,66660.0,66659.0,0.00016]
[1721723143039,1.163105,66660.0,66659.0,0.00016]
[1721723143259,1.2854283,66660.0,66659.0,0.00016]
[1721723143481,1.5854583,66660.0,66659.0,0.00016]
[1721723143691,1.2854283,66660.0,66659.0,0.00016]
[1721723143867,1.2764283,66660.0,66659.0,0.00016]
[1721723144000,1.2854283,66660.0,66659.0,0.00016]
[1721723144201,1.159105,66660.0,66659.0,0.14766]
[1721723145705,1.150105,66660.0,66659.0,0.14766]
[1721723145916,1.155105,66660.0,66659.0,0.14766]
[1721723146114,1.161105,66660.0,66659.0,0.14766]
[1721723146418,1.3012167,66660.0,66659.0,0.14766]
[1721723146837,1.3102167,66660.0,66659.0,0.14766]
[1721723148500,1.31930782,66660.0,66659.0,0.14766]
[1721723148702,0.86416612,66660.0,66659.0,0.167644]
[1721723148911,0.550045,66660.0,66659.0,0.167644]
[1721723149122,0.557045,66660.0,66659.0,0.167644]
[1721723149452,0.857075,66660.0,66659.0,0.167644]
[1721723149656,0.550045,66660.0,66659.0,0.167644]
[1721723149913,0.554045,66660.0,66659.0,0.167644]
[1721723150218,0.552045,66660.0,66659.0,0.167644]
[1721723150638,0.552045,66660.0,66659.0,0.149644]
[1721723150948,0.4696,66694.0,66670.0,0.0797]
[1721723151159,0.82312442,66699.0,66698.0,0.019984]
[1721723151362,0.450594,66703.0,66702.0,0.019984]
[1721723151566,0.00084,66703.0,66702.0,0.019984]
[1721723151766,0.00084,66703.0,66702.0,0.100284]
[1721723152177,0.00084,66703.0,66702.0,0.10346264]
[1721723152466,0.150758,66703.0,66702.0,0.100284]
[1721723152643,0.00084,66703.0,66702.0,0.10346264]
[1721723153777,0.02484,66703.0,66702.0,0.16526264]
[1721723154131,0.24824742,66703.0,66702.0,0.16526264]
[1721723154318,0.54808342,66703.0,66702.0,0.02316264]
[1721723154532,0.09832942,66703.0,66702.0,0.02316264]
[1721723154739,0.09832942,66703.0,66702.0,0.019984]
[1721723154942,0.09832942,66703.0,66702.0,0.02312647]
[1721723155603,0.09832942,66703.0,66702.0,0.019984]
[1721723155753,0.09832942,66703.0,66702.0,0.02312647]
[1721723155957,0.19832942,66703.0,66702.0,0.02312647]
[1721723156231,0.19832942,66703.0,66702.0,0.019984]
[1721723156232,0.34824742,66703.0,66702.0,0.019984]
[1721723156361,0.34824742,66703.0,66702.0,0.02312647]
[1721723156556,0.34824742,66703.0,66702.0,0.019984]
[1721723157206,0.64808342,66703.0,66702.0,0.02312647]
[1721723157384,0.64808342,66703.0,66702.0,0.019984]
[1721723158346,0.94791942,66703.0,66702.0,0.019984]
[1721723158555,0.64808342,66703.0,66702.0,0.019984]
[1721723159269,0.19832942,66703.0,66702.0,0.019984]
[1721723159473,0.94791942,66703.0,66702.0,0.019984]
[1721723159613,0.64808342,66703.0,66702.0,0.02312647]
[1721723159812,0.64808342,66703.0,66702.0,0.019984]
[1721723160729,0.64808342,66703.0,66696.0,0.0803]
[1721723160730,0.449761,66702.0,66701.0,0.019984]
[1721723160971,0.849602,66702.0,66701.0,0.019984]
[1721723162453,0.549761,66702.0,66701.0,0.019984]
[1721723162655,0.24992,66702.0,66701.0,0.019984]
[1721723163087,0.562761,66702.0,66701.0,0.019984]
[1721723163697,0.27092,66702.0,66701.0,0.019984]
[1721723163896,0.570761,66702.0,66701.0,0.019984]
[1721723164154,0.870602,66702.0,66701.0,0.019984]
[1721723164807,1.170443,66702.0,66701.0,0.019984]
[1721723164983,0.870602,66702.0,66701.0,0.019984]
[1721723166293,0.870602,66702.0,66696.0,0.0803]
[1721723166294,0.24547634,66702.0,66696.0,0.019984]
[1721723166490,0.149931,66697.0,66696.0,0.019984]
[1721723166803,0.849657,66697.0,66696.0,0.019984]
[1721723166973,0.849657,66697.0,66690.0,0.019984]
[1721723166974,0.749725,66691.0,66690.0,0.019984]
[1721723167585,0.449835,66691.0,66690.0,0.019984]
[1721723167736,0.149945,66691.0,66690.0,0.019984]
[1721723168144,0.149945,66691.0,66690.0,0.02312622]
[1721723168345,0.449835,66691.0,66690.0,0.02312622]
[1721723168694,0.150945,66691.0,66690.0,0.02312622]
[1721723168842,0.150945,66691.0,66690.0,0.019984]
[1721723169044,0.001,66691.0,66690.0,0.02312622]
[1721723169391,0.450835,66691.0,66690.0,0.02312622]
[1721723169806,0.450835,66691.0,66690.0,0.019984]
[1721723170353,0.001,66691.0,66690.0,0.0281424]
[1721723170462,0.001,66691.0,66690.0,0.019984]
[1721723171005,0.001,66691.0,66690.0,0.02612484]
[1721723171523,0.001,66691.0,66690.0,0.17307322]
[1721723172193,0.001,66691.0,66690.0,0.02312622]
[1721723172834,0.001,66691.0,66690.0,0.17014613]
[1721723173039,0.001,66691.0,66690.0,0.32009313]
[1721723173397,0.001,66691.0,66690.0,0.17014613]
[1721723173804,0.001,66691.0,66690.0,0.02312622]
[1721723174001,0.450835,66691.0,66690.0,0.02312622]
[1721723174201,0.450835,66691.0,66690.0,0.019984]
[1721723175267,0.150945,66691.0,66690.0,0.019984]
[1721723175772,0.450835,66691.0,66690.0,0.019984]
[1721723176124,0.450835,66691.0,66690.0,0.02312622]
[1721723176328,0.450835,66691.0,66690.0,0.019984]
[1721723176727,0.750725,66691.0,66690.0,0.019984]
[1721723177560,0.450835,66691.0,66690.0,0.019984]
[1721723178716,0.001,66691.0,66690.0,0.019984]
[1721723178842,0.001,66691.0,66690.0,0.0281424]
[1721723179511,0.001,66691.0,66690.0,0.019984]
[1721723179676,0.001,66691.0,66690.0,0.02313068]
[1721723180714,0.150945,66691.0,66690.0,0.019984]
[1721723180920,0.001,66691.0,66690.0,0.019984]
[1721723181215,0.001,66691.0,66690.0,0.02313068]
[1721723182180,0.001,66691.0,66690.0,1.04984716]
[1721723182382,0.001,66691.0,66690.0,0.45799759]
[1721723182938,0.001,66691.0,66690.0,0.75789259]
[1721723183425,0.001,66691.0,66690.0,0.45799759]
[1721723184005,0.001,66691.0,66690.0,0.75789259]
[1721723184795,0.001,66691.0,66690.0,0.45799759]
[1721723185513,0.001,66691.0,66690.0,0.75789259]
[1721723185892,0.001,66691.0,66690.0,0.83368185]
[1721723186117,0.30089,66691.0,66690.0,0.02313068]
[1721723186337,0.750725,66691.0,66690.0,0.02313068]
[1721723186544,0.850725,66691.0,66690.0,0.019984]
[1721723189084,1.150615,66691.0,66690.0,0.019984]
[1721723189309,0.850725,66691.0,66690.0,0.019984]
[1721723190755,0.749747,66689.0,66688.0,0.019984]
[1721723190953,0.849747,66689.0,66688.0,0.019984]
[1721723191206,0.549848,66689.0,66688.0,0.019984]
[1721723191582,0.1,66689.0,66688.0,0.23090391]
[1721723191822,0.001,66691.0,66690.0,0.019984]
[1721723191965,0.001,66691.0,66690.0,0.24460391]
[1721723192171,0.001,66691.0,66690.0,0.46361744]
[1721723192395,0.001,66691.0,66690.0,0.76351244]
[1721723192576,0.1,66695.0,66694.0,0.019984]
[1721723192779,0.25907986,66699.0,66698.0,0.019984]
[1721723192976,0.55893386,66699.0,66698.0,0.019984]
[1721723193184,0.1,66699.0,66698.0,0.019984]
[1721723193376,0.52408342,66703.0,66702.0,0.019984]
[1721723193582,0.22424742,66703.0,66702.0,0.019984]
[1721723193809,0.52408342,66703.0,66702.0,0.019984]
[1721723194002,0.22424742,66703.0,66702.0,0.019984]
[1721723194885,0.52408342,66703.0,66702.0,0.019984]
[1721723195649,0.17432942,66703.0,66702.0,0.019984]
[1721723195884,0.01484,66703.0,66702.0,0.162284]
[1721723196065,0.01484,66703.0,66702.0,0.1785124]
[1721723196283,0.01484,66703.0,66702.0,0.16518339]
[1721723197052,0.02484,66703.0,66702.0,0.16518339]
[1721723201232,0.02484,66703.0,66702.0,0.31510339]
[1721723201987,0.02484,66703.0,66702.0,1.0618053]
[1721723202098,0.02484,66703.0,66702.0,1.20297203]
[1721723203120,0.02484,66703.0,66702.0,1.0618053]
[1721723203914,0.02484,66703.0,66702.0,0.4621233]
[1721723205306,0.02484,66703.0,66702.0,0.7619643]
[1721723205507,0.02484,66703.0,66702.0,0.4621233]
[1721723205633,0.02484,66703.0,66702.0,0.7619643]
[1721723205989,0.02484,66703.0,66702.0,0.3122033]
[1721723206146,0.02484,66703.0,66702.0,0.2503033]
[1721723209801,0.02484,66703.0,66702.0,0.32644213]
[1721723210001,0.02484,66703.0,66702.0,0.47636213]
[1721723210613,0.02484,66703.0,66702.0,0.77620313]
[1721723210808,0.02484,66703.0,66702.0,1.07604413]
[1721723211012,0.02484,66703.0,66702.0,1.23744413]
[1721723212830,0.02484,66703.0,66702.0,1.58728513]
[1721723214411,0.02484,66703.0,66702.0,0.7614643]
[1721723214976,0.02484,66703.0,66702.0,0.8114643]
[1721723215179,0.02484,66703.0,66702.0,1.1113053]
[1721723216247,0.02484,66703.0,66702.0,0.7614643]
[1721723216908,0.02484,66703.0,66702.0,1.1113053]
[1721723217108,0.02484,66703.0,66702.0,1.13877738]
[1721723217951,0.02484,66703.0,66702.0,1.53861838]
[1721723218754,0.02484,66703.0,66702.0,1.86145938]
[1721723218977,0.01084,66703.0,66702.0,1.86145938]
[1721723219298,0.01484,66703.0,66702.0,1.86145938]
[1721723219502,0.00484,66703.0,66702.0,1.86145938]
[1721723219727,0.00084,66703.0,66702.0,2.16130038]
[1721723219907,0.00084,66703.0,66702.0,1.86145938]
[1721723220157,0.00084,66703.0,66702.0,2.16129938]
[1721723220972,0.43915808,66726.0,66725.0,0.169852]
[1721723221138,0.43915808,66726.0,66725.0,0.16700391]
[1721723221331,0.07348942,66731.0,66730.0,0.019984]
[1721723222838,0.09348942,66731.0,66730.0,0.019984]
[1721723223034,0.24334442,66731.0,66730.0,0.019984]
[1721723223300,0.09348942,66731.0,66730.0,0.03668439]
[1721723223535,0.02,66731.0,66730.0,0.1837043]
[1721723223702,0.02,66731.0,66730.0,0.6332763]
[1721723223904,0.02,66731.0,66730.0,1.0130913]
[1721723224148,0.02,66731.0,66730.0,1.06249591]
[1721723224344,0.02,66731.0,66730.0,1.16249591]
[1721723224547,0.02,66731.0,66730.0,1.46221091]
[1721723224672,0.02,66731.0,66730.0,1.41221091]
[1721723224921,0.02,66731.0,66730.0,1.46221091]
[1721723225148,0.02,66731.0,66730.0,1.90888856]
[1721723225512,0.008,66731.0,66730.0,1.90888856]
[1721723225752,0.07348942,66743.0,66742.0,0.169814]
[1721723225953,0.07348942,66743.0,66742.0,0.31683391]
[1721723226174,0.00907665,66749.0,66742.0,0.31683391]
[1721723226175,0.00907665,66749.0,66748.0,0.169801]
[1721723226330,0.00907665,66749.0,66748.0,0.16700391]
[1721723226701,0.00845,66751.0,66750.0,0.019984]
[1721723227233,0.00845,66751.0,66750.0,0.169796]
[1721723227449,0.00845,66751.0,66750.0,0.16700391]
[1721723228211,0.17226,66751.0,66750.0,0.16700391]
[1721723228593,0.02245,66751.0,66750.0,0.15300391]
[1721723228826,0.02245,66751.0,66750.0,0.18478097]
[1721723228945,0.02245,66751.0,66750.0,0.30281591]
[1721723229296,0.02245,66751.0,66750.0,0.60244091]
[1721723229431,0.02245,66751.0,66750.0,0.67844091]
[1721723229643,0.03645,66751.0,66750.0,0.67844091]
[1721723230066,0.02245,66751.0,66750.0,0.67844091]
[1721723230490,0.00845,66751.0,66750.0,0.67844091]
[1721723230762,0.01345,66751.0,66750.0,1.04737292]
[1721723230968,0.01345,66751.0,66750.0,1.07807091]
[1721723231249,0.00845,66751.0,66750.0,1.37769591]
[1721723231604,0.00845,66751.0,66750.0,1.07807091]
[1721723231605,0.01245,66751.0,66750.0,1.07807091]
[1721723231984,0.01245,66751.0,66750.0,0.57863391]